bitfinex-derivatives/quotes_SOLF0:USTF0_20260227
["timestamp","ask_amount","ask_price","bid_price","bid_amount"]
[1772187609955,3.8698921,85.65,85.6,3.71432089]
[1772187610554,3.8698921,85.65,85.608,10.5126]
[1772187611760,3.8698921,85.65,85.57,9.3557103]
[1772187611761,3.8698921,85.65,85.571,3.62676904]
[1772187612755,10.5102,85.629,85.576,3.62676904]
[1772187612961,9.3557103,85.67,85.576,3.62676904]
[1772187612962,3.86816064,85.628,85.576,3.62676904]
[1772187613161,3.86816064,85.648,85.576,3.62676904]
[1772187613749,10.509,85.638,85.59,3.62676904]
[1772187614358,10.5082,85.645,85.593,10.5145]
[1772187614557,3.86816064,85.644,85.593,10.5145]
[1772187615156,3.86816064,85.644,85.598,3.62676904]
[1772187616363,10.5085,85.642,85.599,14.14046904]
[1772187618061,3.86816064,85.644,85.602,10.5133]
[1772187618262,3.86816064,85.644,85.603,3.62676904]
[1772187618557,3.86816064,85.644,85.571,3.62676904]
[1772187618764,10.509,85.639,85.571,3.62676904]
[1772187618955,14.37716064,85.639,85.571,3.62676904]
[1772187619661,10.508,85.646,85.571,3.62676904]
[1772187620265,3.86816064,85.655,85.593,3.62676904]
[1772187620865,10.5099,85.631,85.593,3.62676904]
[1772187621168,3.86816064,85.641,85.593,3.62676904]
[1772187621359,10.5091,85.638,85.601,10.5135]
[1772187623263,3.86816064,85.635,85.561,3.62676904]
[1772187623567,3.86816064,85.635,85.584,3.62676904]
[1772187623959,10.5095,85.634,85.584,3.62676904]
[1772187624867,10.5095,85.634,85.59,10.5149]
[1772187625062,10.5103,85.627,85.59,10.5149]
[1772187625268,3.86816064,85.635,85.584,3.62676904]
[1772187625463,3.86816064,85.635,85.587,3.62676904]
[1772187627361,3.86816064,85.635,85.59,7.11795971]
[1772187627565,3.86816064,85.635,85.591,3.62676904]
[1772187627964,3.86816064,85.635,85.597,10.514]
[1772187628765,3.86816064,85.635,85.591,3.62676904]
[1772187631068,3.86816064,85.635,85.599,10.5137]
[1772187631263,3.86816064,85.635,85.591,3.62676904]
[1772187632271,3.86816064,85.635,85.596,10.5141]
[1772187632968,3.86816064,85.629,85.596,10.5141]
[1772187633176,3.86816064,85.609,85.565,3.62676904]
[1772187633768,6.064e-05,85.609,85.565,3.62676904]
[1772187633975,3.49119067,85.63,85.571,3.62676904]
[1772187634667,3.49119067,85.64,85.585,3.62676904]
[1772187635273,3.49119067,85.64,85.594,14.14106904]
[1772187636070,7.35935131,85.64,85.594,14.14106904]
[1772187636277,3.86816064,85.639,85.594,3.62676904]
[1772187637474,3.62760799,85.638,85.594,3.62676904]
[1772187638377,3.62760799,85.636,85.58,3.49119067]
[1772187638576,3.62760799,85.629,85.58,3.57451348]
[1772187639083,3.62760799,85.629,85.581,3.57451348]
[1772187639378,3.62760799,85.629,85.583,3.57451348]
[1772187640171,3.62760799,85.629,85.591,10.5147]
[1772187640574,14.19063591,85.642,85.596,10.5141]
[1772187640779,14.19063591,85.642,85.597,3.89333114]
[1772187640780,3.49119067,85.64,85.597,3.89333114]
[1772187640978,3.68203591,85.642,85.597,3.89333114]
[1772187641979,3.68203591,85.642,85.6,10.5136]
[1772187642283,3.68203591,85.642,85.601,3.89333114]
[1772187642680,14.19053591,85.642,85.601,3.89333114]
[1772187642978,3.49119067,85.64,85.601,3.89333114]
[1772187643182,7.17322658,85.64,85.601,3.89333114]
[1772187643379,3.68203591,85.639,85.601,3.89333114]
[1772187643790,10.5093,85.636,85.601,3.89333114]
[1772187644186,10.5093,85.636,85.59,14.00599067]
[1772187644488,10.5098,85.631,85.59,10.5148]
[1772187645389,3.68203591,85.635,85.592,10.5146]
[1772187645792,3.68203591,85.635,85.591,3.89333114]
[1772187646495,12.704646,85.634,85.591,3.89333114]
[1772187646692,3.68203591,85.634,85.591,3.89333114]
[1772187647292,45.37513506,85.659,85.58,3.49119067]
[1772187647293,3.68203591,85.629,85.58,3.49119067]
[1772187647487,3.68203591,85.648,85.6,3.49119067]
[1772187647691,3.68203591,85.648,85.601,3.89333114]
[1772187647893,3.49119067,85.64,85.601,3.89333114]
[1772187648092,9.02528115,85.647,85.601,3.89333114]
[1772187648390,3.68203591,85.648,85.601,3.89333114]
[1772187648591,3.49119067,85.66,85.601,3.89333114]
[1772187648793,3.49119067,85.66,85.548,28.93465962]
[1772187648794,3.49119067,85.61,85.498,16.68550152]
[1772187648988,163.5296,85.609,85.5,3.49119067]
[1772187649187,3.4982355,85.56,85.501,48.69458043]
[1772187649599,10.29513506,85.597,85.501,48.69458043]
[1772187649896,10.5218,85.534,85.484,48.69458043]
[1772187650097,3.4982355,85.53,85.47,3.4982355]
[1772187650394,3.4982355,85.51,85.468,48.69458043]
[1772187651303,3.4982355,85.52,85.471,48.54811729]
[1772187651501,10.57311075,85.519,85.471,48.54811729]
[1772187651798,3.4982355,85.52,85.471,48.54811729]
[1772187653099,3.4982355,85.51,85.471,48.54811729]
[1772187653297,3.4982355,85.51,85.396,163.9365]
[1772187653298,3.4982355,85.48,85.43,3.4982355]
[1772187653702,3.4982355,85.49,85.43,3.4982355]
[1772187654097,3.4982355,85.49,85.399,5.26040542]
[1772187654401,10.5344,85.432,85.284,164.1516]
[1772187654602,10.55603175,85.431,85.37,3.4982355]
[1772187654798,10.55603175,85.46,85.37,3.4982355]
[1772187655000,3.4982355,85.42,85.37,3.4982355]
[1772187655200,10.5347,85.429,85.339,5.26156673]
[1772187655408,9.40160835,85.43,85.34,39.66667691]
[1772187655603,9.40160835,85.41,85.34,39.66667691]
[1772187656106,10.55603175,85.427,85.34,39.66667691]
[1772187656302,10.5375,85.407,85.34,39.66667691]
[1772187656710,9.40160835,85.41,85.34,39.66667691]
[1772187656906,9.40160835,85.43,85.34,39.66667691]
[1772187656907,9.40160835,85.39,85.34,39.66667691]
[1772187657903,10.5397,85.389,85.289,39.62933501]
[1772187658109,10.5397,85.389,85.258,2.03505202]
[1772187658110,9.40160835,85.39,85.291,39.62933501]
[1772187658608,10.5396,85.389,85.291,39.62933501]
[1772187658804,10.5396,85.389,85.296,39.62933501]
[1772187659211,9.40160835,85.39,85.296,39.62933501]
[1772187659399,9.40160835,85.39,85.301,39.62366797]
[1772187659605,9.40160835,85.39,85.302,39.62366797]
[1772187660310,9.40160835,85.41,85.321,39.62366797]
[1772187660712,9.40160835,85.39,85.321,39.62366797]
[1772187660911,9.40160835,85.41,85.321,39.62366797]
[1772187661910,448.86179901,85.429,85.325,39.60917144]
[1772187662608,448.86179901,85.429,85.33,39.60917144]
[1772187663309,9.40160835,85.43,85.341,39.60050504]
[1772187664116,9.40160835,85.43,85.343,39.60050504]
[1772187665014,9.40160835,85.43,85.345,39.60231862]
[1772187666119,35.08,85.477,85.359,39.60231862]
[1772187666322,9.40160835,85.46,85.361,39.60231862]
[1772187666622,461.46941553,85.467,85.401,39.60231862]
[1772187666822,9.40160835,85.46,85.401,39.60231862]
[1772187667518,9.40160835,85.46,85.384,39.63862009]
[1772187667915,10.5311,85.458,85.384,39.63862009]
[1772187668115,461.46941553,85.467,85.384,39.63862009]
[1772187668311,9.40160835,85.45,85.384,39.63862009]
[1772187669222,163.8638,85.435,85.285,44.32722334]
[1772187669414,18.8032167,85.39,85.285,44.32722334]
[1772187669619,9.40160835,85.38,85.285,44.32722334]
[1772187670116,5.26802619,85.417,85.285,44.32722334]
[1772187670318,163.8932,85.419,85.285,44.32722334]
[1772187670319,9.40160835,85.36,85.285,44.32722334]
[1772187670719,9.40160835,85.34,85.268,44.32725917]
[1772187671423,9.40160835,85.35,85.268,44.32725917]
[1772187672212,163.9315,85.399,85.268,44.32725917]
[1772187672422,9.40160835,85.38,85.283,44.13045957]
[1772187672622,163.8314,85.452,85.321,44.13045957]
[1772187672815,9.40160835,85.42,85.321,44.13045957]
[1772187673417,9.40160835,85.44,85.321,44.13045957]
[1772187673612,10.5368,85.412,85.322,10.5479]
[1772187673817,10.5368,85.412,85.341,44.16933549]
[1772187674220,10.535,85.427,85.341,44.16933549]
[1772187674422,9.40160835,85.44,85.341,44.16933549]
[1772187674923,9.40160835,85.39,85.321,44.16933549]
[1772187675524,10.5413,85.376,85.321,44.16933549]
[1772187675822,9.40160835,85.41,85.321,44.16933549]
[1772187676216,9.40160835,85.39,85.301,44.19237607]
[1772187676918,10.5411,85.378,85.301,54.74287607]
[1772187677725,10.5394,85.391,85.301,54.74287607]
[1772187678929,10.5394,85.391,85.312,10.5491]
[1772187679124,10.5394,85.391,85.321,44.18339247]
[1772187681124,10.5379,85.403,85.325,44.1888084]
[1772187681332,9.40160835,85.41,85.325,44.1888084]
[1772187684528,10.541,85.378,85.325,44.1888084]
[1772187685625,10.5397,85.389,85.325,44.1888084]
[1772187685826,35.08,85.408,85.325,44.1888084]
[1772187686633,35.08,85.409,85.325,44.1888084]
[1772187687030,35.08,85.409,85.329,44.18857946]
[1772187687426,35.08,85.419,85.329,44.18857946]
[1772187687623,10.06345073,85.473,85.341,44.18857946]
[1772187687837,9.40160835,85.45,85.341,44.18857946]
[1772187688529,35.08,85.449,85.361,44.18857946]
[1772187690039,35.08,85.429,85.344,44.19526366]
[1772187690634,10.5364,85.415,85.344,44.19526366]
[1772187690946,9.40160835,85.45,85.344,44.19526366]
[1772187691129,10.5352,85.425,85.363,44.190582]
[1772187691937,9.40160835,85.45,85.36,9.40160835]
[1772187691938,10.5341,85.434,85.365,44.190582]
[1772187692535,10.5352,85.426,85.372,44.190582]
[1772187694139,10.534,85.435,85.375,44.19261784]
[1772187694834,10.534,85.435,85.36,9.40160835]
[1772187694835,10.534,85.435,85.383,44.19261784]
[1772187695340,10.535,85.427,85.383,44.19261784]
[1772187696330,10.17040861,85.426,85.383,44.19261784]
[1772187696532,10.5339,85.436,85.383,44.19261784]
[1772187696736,10.17063539,85.435,85.383,54.73291784]
[1772187696938,10.17063539,85.434,85.383,44.19261784]
[1772187697139,10.5357,85.421,85.383,44.19261784]
[1772187697441,10.18380732,85.42,85.383,44.19261784]
[1772187697641,10.18380732,85.419,85.383,44.19261784]
[1772187697837,10.26613886,85.441,85.383,44.19261784]
[1772187698042,10.18626625,85.44,85.383,44.19261784]
[1772187698235,10.18626625,85.439,85.383,44.19261784]
[1772187698436,10.26613886,85.435,85.383,44.19261784]
[1772187698738,10.18626625,85.434,85.385,44.22967946]
[1772187698933,10.18626625,85.433,85.385,44.22967946]
[1772187699135,10.18626625,85.432,85.385,44.22967946]
[1772187699340,10.26613886,85.451,85.391,44.22777678]
[1772187699537,10.07454665,85.45,85.401,44.22777678]
[1772187699845,10.07454665,85.449,85.401,44.22777678]
[1772187700040,10.07454665,85.448,85.401,44.22777678]
[1772187700235,10.07454665,85.447,85.401,44.22777678]
[1772187700438,10.07454665,85.446,85.403,44.22783517]
[1772187700638,10.07454665,85.445,85.403,44.22783517]
[1772187700842,10.07454665,85.444,85.403,44.22783517]
[1772187701041,10.07454665,85.443,85.403,44.22783517]
[1772187701242,10.07454665,85.442,85.403,44.22783517]
[1772187701546,10.07454665,85.441,85.403,44.22783517]
[1772187701746,10.26613886,85.457,85.403,44.22783517]
[1772187701747,10.07454665,85.44,85.407,10.5374]
[1772187701948,10.07454665,85.439,85.384,44.23757176]
[1772187702147,10.07454665,85.438,85.384,44.23757176]
[1772187702349,10.07454665,85.437,85.384,44.23757176]
[1772187702549,10.07454665,85.436,85.384,44.23757176]
[1772187702850,10.07454665,85.435,85.384,44.23757176]
[1772187703047,10.07454665,85.434,85.384,44.23757176]
[1772187703247,10.07454665,85.433,85.384,44.23757176]
[1772187703446,10.07454665,85.432,85.384,44.23757176]
[1772187703649,10.07454665,85.431,85.384,44.23757176]
[1772187703847,10.07454665,85.43,85.384,44.23757176]
[1772187704050,10.07454665,85.429,85.392,10.5391]
[1772187704252,10.5326,85.447,85.392,10.5391]
[1772187704453,9.9488565,85.446,85.384,44.23757176]
[1772187704654,9.9488565,85.445,85.384,44.23757176]
[1772187704849,10.26613886,85.475,85.401,44.23361225]
[1772187705154,10.26613886,85.483,85.423,44.24502628]
[1772187705346,10.26613886,85.484,85.423,44.24502628]
[1772187705549,10.26613886,85.498,85.457,10.5312]
[1772187705751,10.26613886,85.495,85.457,10.5312]
[1772187706253,9.40160835,85.5,85.449,10.5322]
[1772187706748,35.08,85.511,85.439,44.24502628]
[1772187707352,35.08,85.509,85.462,10.5306]
[1772187707754,9.40160835,85.52,85.462,10.5306]
[1772187708056,10.26613886,85.529,85.469,10.5297]
[1772187708252,9.40160835,85.54,85.469,10.5297]
[1772187708655,9.40160835,85.54,85.476,44.2491321]
[1772187709056,35.08,85.539,85.476,44.2491321]
[1772187709252,10.5202,85.548,85.487,10.5275]
[1772187710352,9.37580203,85.53,85.459,44.24997064]
[1772187710761,35.08,85.54,85.464,44.24997064]
[1772187710954,9.37580203,85.55,85.464,44.24997064]
[1772187711653,10.5202,85.547,85.475,10.529]
[1772187711858,10.5202,85.547,85.476,44.24475953]
[1772187713057,10.5211,85.54,85.476,44.24475953]
[1772187715665,10.5211,85.54,85.478,44.25528578]
[1772187716562,10.52,85.549,85.48,44.25528578]
[1772187717367,10.5217,85.535,85.48,44.25528578]
[1772187717567,9.37580203,85.57,85.48,44.25528578]
[1772187717869,10.5186,85.561,85.497,44.24930853]
[1772187718262,9.37580203,85.59,85.497,44.24930853]
[1772187718567,9.37580203,85.59,85.48,9.37580203]
[1772187718568,9.37580203,85.59,85.513,44.24930853]
[1772187718866,9.37580203,85.57,85.513,44.24930853]
[1772187719462,35.08,85.569,85.513,44.24930853]
[1772187719863,10.5203,85.546,85.513,44.24930853]
[1772187720471,9.37580203,85.57,85.513,44.24930853]
[1772187720964,21.0232,85.617,85.516,44.24958359]
[1772187721171,9.37580203,85.6,85.516,44.24958359]
[1772187721467,35.08,85.599,85.516,44.24958359]
[1772187721667,10.5159,85.582,85.532,44.24958359]
[1772187721861,9.37580203,85.62,85.532,44.24958359]
[1772187722470,35.08,85.619,85.535,44.24958359]
[1772187723065,10.5144,85.594,85.539,44.24693911]
[1772187723266,35.08,85.618,85.539,44.24693911]
[1772187723465,35.08,85.599,85.522,44.24693911]
[1772187723960,35.08,85.599,85.522,54.77013911]
[1772187724969,35.08,85.579,85.522,44.24693911]
[1772187725972,10.5192,85.556,85.522,44.24693911]
[1772187726372,10.5192,85.556,85.505,44.25721686]
[1772187726577,10.52,85.549,85.505,44.25721686]
[1772187726973,35.08,85.559,85.481,44.27299446]
[1772187727272,10.5207,85.543,85.481,44.27299446]
[1772187727473,10.5207,85.543,85.483,44.27299446]
[1772187727673,35.08,85.549,85.483,44.27299446]
[1772187728671,10.5228,85.526,85.483,44.27299446]
[1772187728877,9.37580203,85.53,85.451,44.27299446]
[1772187729477,9.37580203,85.55,85.455,44.26711567]
[1772187729870,35.08,85.546,85.455,44.26711567]
[1772187730070,9.37580203,85.53,85.455,44.26711567]
[1772187730675,9.37580203,85.51,85.455,44.26711567]
[1772187731679,10.5269,85.493,85.455,44.26711567]
[1772187732382,9.37580203,85.52,85.455,44.26711567]
[1772187732383,10.5258,85.502,85.455,44.26711567]
[1772187732881,10.527,85.492,85.455,44.26711567]
[1772187733275,9.37580203,85.5,85.421,44.2781339]
[1772187733676,10.529,85.476,85.424,44.2781339]
[1772187734076,9.37580203,85.5,85.424,44.2781339]
[1772187735077,9.37580203,85.52,85.424,44.2781339]
[1772187735477,9.37580203,85.52,85.451,44.29613875]
[1772187736176,9.37580203,85.52,85.391,163.9465]
[1772187736177,21.0328,85.578,85.453,44.29613875]
[1772187736481,35.08,85.549,85.453,44.29613875]
[1772187737981,10.5232,85.523,85.463,44.29862918]
[1772187738577,9.37580203,85.56,85.473,44.29862918]
[1772187738981,10.5199,85.549,85.487,39.0309402]
[1772187739278,9.37580203,85.58,85.487,39.0309402]
[1772187739480,9.37580203,85.58,85.501,39.0309402]
[1772187740284,9.37580203,85.6,85.522,39.0309402]
[1772187740981,9.37580203,85.6,85.526,39.0309402]
[1772187741682,10.5179,85.566,85.526,39.0309402]
[1772187742077,10.5179,85.566,85.514,10.5242]
[1772187742878,10.5179,85.566,85.508,39.01554822]
[1772187743787,10.5188,85.559,85.508,39.01554822]
[1772187744983,10.5198,85.55,85.495,10.5266]
[1772187745188,10.5198,85.55,85.491,39.02382693]
[1772187745685,10.5208,85.542,85.491,39.02382693]
[1772187745881,9.37580203,85.56,85.491,39.02382693]
[1772187746278,9.37580203,85.54,85.461,39.02382693]
[1772187746489,9.00093366,85.558,85.477,39.02382693]
[1772187746679,9.37580203,85.56,85.477,39.02382693]
[1772187747283,10.5215,85.536,85.48,39.02340806]
[1772187747487,9.37580203,85.56,85.48,39.02340806]
[1772187748588,741.70069949,85.621,85.491,39.02340806]
[1772187748589,10.5196,85.552,85.491,39.02340806]
[1772187748887,9.01697333,85.579,85.491,39.02340806]
[1772187749090,9.37580203,85.58,85.491,39.02340806]
[1772187749091,10.5206,85.544,85.491,39.02340806]
[1772187749291,9.37580203,85.56,85.491,39.02340806]
[1772187749490,35.08,85.559,85.491,39.02340806]
[1772187749693,10.5223,85.53,85.491,39.02340806]
[1772187750087,35.08,85.557,85.491,39.02340806]
[1772187750290,9.37580203,85.56,85.491,39.02340806]
[1772187750291,35.08,85.555,85.491,39.02340806]
[1772187750492,35.08,85.553,85.491,39.02340806]
[1772187750797,35.08,85.551,85.491,39.02340806]
[1772187750991,35.08,85.549,85.491,39.02340806]
[1772187751191,35.08,85.547,85.491,39.02340806]
[1772187751392,9.05034435,85.546,85.491,39.02340806]
[1772187751693,35.08,85.547,85.491,39.02340806]
[1772187752088,9.05332032,85.546,85.491,39.02340806]
[1772187752288,9.37580203,85.54,85.491,39.02340806]
[1772187752689,35.08,85.539,85.463,39.02459898]
[1772187752996,9.37580203,85.52,85.463,39.02459898]
[1772187753199,10.5264,85.497,85.463,39.02459898]
[1772187756200,35.08,85.529,85.463,39.02459898]
[1772187757895,35.08,85.527,85.463,39.02459898]
[1772187758096,35.08,85.525,85.463,39.02459898]
[1772187758296,10.5253,85.505,85.463,39.02459898]
[1772187758502,35.08,85.523,85.463,39.02459898]
[1772187758697,35.08,85.509,85.447,39.01456706]
[1772187759898,10.5265,85.496,85.447,39.01456706]
[1772187760197,35.08,85.509,85.447,39.01456706]
[1772187761198,2.03612364,85.499,85.447,39.01456706]
[1772187761404,35.08,85.509,85.447,39.01456706]
[1772187761604,37.11600452,85.509,85.447,39.01456706]
[1772187763007,10.5263,85.497,85.447,39.01456706]
[1772187765805,10.5272,85.491,85.447,39.01456706]
[1772187766202,9.37580203,85.51,85.447,39.01456706]
[1772187767311,56.1598,85.509,85.447,39.01456706]
[1772187768708,10.5271,85.491,85.447,39.01456706]
[1772187768915,35.11,85.509,85.447,39.01456706]
[1772187769412,35.11,85.489,85.373,21.0831]
[1772187769613,9.37580203,85.47,85.344,164.0361]
[1772187770101,9.37580203,85.47,85.353,21.0881]
[1772187770304,9.04658591,85.485,85.353,21.0881]
[1772187770514,9.37580203,85.49,85.353,21.0881]
[1772187771210,9.38906809,85.49,85.413,10.5366]
[1772187771408,9.38906809,85.49,85.414,29.06517022]
[1772187772408,10.5318,85.453,85.414,29.06517022]
[1772187774315,10.5327,85.445,85.414,29.06517022]
[1772187774916,9.38906809,85.47,85.353,21.0881]
[1772187775210,9.38906809,85.47,85.37,9.38906809]
[1772187775614,10.5333,85.441,85.35,9.38906809]
[1772187775811,9.38906809,85.45,85.35,9.38906809]
[1772187776210,9.38906809,85.45,85.378,10.541]
[1772187776611,9.38906809,85.45,85.335,311.29326916]
[1772187776612,10.5323,85.449,85.386,10.5399]
[1772187777014,10.5323,85.449,85.387,18.49299458]
[1772187778007,10.5323,85.449,85.389,18.48509789]
[1772187778214,10.5333,85.441,85.389,18.48509789]
[1772187778818,19.92126809,85.45,85.389,18.48509789]
[1772187779614,9.38906809,85.45,85.398,18.49418406]
[1772187779816,9.38906809,85.47,85.398,18.49418406]
[1772187780118,9.38906809,85.47,85.41,18.49418406]
[1772187780716,9.38906809,85.47,85.411,18.49418406]
[1772187784025,44.49906809,85.47,85.371,18.52090692]
[1772187784823,10.5314,85.456,85.395,18.52090692]
[1772187785624,10.5322,85.449,85.401,18.53093937]
[1772187786819,44.49906809,85.47,85.401,18.53093937]
[1772187787028,35.11,85.478,85.409,18.53720198]
[1772187787331,10.531,85.459,85.409,18.53720198]
[1772187788425,10.5301,85.467,85.409,18.53720198]
[1772187788831,35.11,85.489,85.41,18.53720198]
[1772187790030,10.531,85.459,85.41,18.53720198]
[1772187791528,10.532,85.452,85.41,18.53720198]
[1772187791930,35.11,85.489,85.413,18.54546074]
[1772187792935,35.11,85.489,85.416,18.54546074]
[1772187794341,35.11,85.487,85.416,18.54546074]
[1772187794732,10.5319,85.452,85.392,18.54600537]
[1772187794932,35.11,85.469,85.392,18.54600537]
[1772187795329,10.5325,85.447,85.396,18.54691637]
[1772187795734,35.11,85.459,85.396,18.54691637]
[1772187796939,10.5316,85.455,85.398,18.54691637]
[1772187798838,35.11,85.489,85.398,18.54691637]
[1772187799033,35.11,85.487,85.398,18.54691637]
[1772187799236,35.11,85.485,85.398,18.54691637]
[1772187799542,35.11,85.483,85.398,18.54691637]
[1772187799738,35.11,85.469,85.398,18.54691637]
[1772187800334,112.11,85.468,85.398,18.54691637]
[1772187800739,10.5312,85.458,85.41,10.537]
[1772187801351,3.50657595,85.45,85.41,10.537]
[1772187801742,3.50657595,85.45,85.404,18.48317144]
[1772187802649,3.50657595,85.45,85.407,29.02057144]
[1772187802852,3.50657595,85.45,85.408,18.48317144]
[1772187803942,3.50657595,85.46,85.408,18.48317144]
[1772187804342,77.0,85.468,85.412,18.47787886]
[1772187804544,77.0,85.47,85.421,18.47787886]
[1772187805047,10.5292,85.474,85.431,18.47787886]
[1772187805249,3.50657595,85.48,85.431,18.47787886]
[1772187805644,3.50657595,85.48,85.433,18.47722238]
[1772187806346,77.0,85.508,85.443,18.47722238]
[1772187806347,35.11,85.499,85.443,18.47722238]
[1772187806652,13.93490072,85.532,85.406,21.075]
[1772187806653,3.50657595,85.51,85.451,18.47722238]
[1772187807049,3.50657595,85.5,85.451,18.47722238]
[1772187807250,9.38188388,85.52,85.451,18.47722238]
[1772187807554,35.11,85.498,85.436,18.46526773]
[1772187808551,35.11,85.499,85.436,18.46526773]
[1772187808954,10.5271,85.491,85.436,18.46526773]
[1772187809156,35.11,85.499,85.436,18.46526773]
[1772187811053,10.5279,85.485,85.436,18.46526773]
[1772187812254,35.11,85.499,85.436,18.46526773]
[1772187812460,44.20480473,85.498,85.436,18.46526773]
[1772187812655,35.11,85.496,85.436,18.46526773]
[1772187812960,35.11,85.494,85.436,18.46526773]
[1772187813264,10.5307,85.462,85.436,18.46526773]
[1772187813748,10.5289,85.477,85.436,18.46526773]
[1772187813951,35.11,85.492,85.436,18.46526773]
[1772187814352,35.11,85.499,85.436,18.46526773]
[1772187814556,10.5296,85.471,85.436,18.46526773]
[1772187815059,35.11,85.493,85.436,18.46526773]
[1772187815357,10.5304,85.465,85.436,18.46526773]
[1772187816549,10.5311,85.458,85.436,18.46526773]
[1772187817956,35.11,85.479,85.398,10.5384]
[1772187818158,9.38188388,85.48,85.398,10.5384]
[1772187818159,44.21028196,85.478,85.398,10.5384]
[1772187818353,35.11,85.478,85.398,10.5384]
[1772187818956,10.5325,85.448,85.398,10.5384]
[1772187819557,10.5333,85.441,85.398,10.5384]
[1772187819960,10.5333,85.441,85.402,9.24974665]
[1772187820552,44.20821709,85.478,85.406,3.98303292]
[1772187820760,35.11,85.498,85.406,3.98303292]
[1772187821058,10.5301,85.467,85.427,3.98324383]
[1772187822761,10.5283,85.481,85.429,3.98266296]
[1772187822956,0.23359037,85.505,85.429,3.98266296]
[1772187823360,9.38188388,85.51,85.42,9.38188388]
[1772187823361,0.23359037,85.519,85.446,3.9871331]
[1772187823960,10.5247,85.51,85.46,3.98415763]
[1772187824857,10.5247,85.51,85.463,3.98415763]
[1772187825167,10.5256,85.504,85.463,3.98415763]
[1772187825463,0.23359037,85.519,85.463,3.98415763]
[1772187825971,0.23359037,85.519,85.465,3.98585168]
[1772187826262,9.38188388,85.53,85.465,3.98585168]
[1772187826663,1.20321466,85.524,85.469,10.5297]
[1772187826872,1.5163926,85.523,85.465,3.98585168]
[1772187827467,1.5163926,85.523,85.467,3.99100698]
[1772187828564,10.5237,85.519,85.467,3.99100698]
[1772187828764,12.64478032,85.519,85.469,10.5297]
[1772187829366,3.50150667,85.51,85.469,10.5297]
[1772187830464,3.50150667,85.51,85.473,10.5292]
[1772187831273,3.50155405,85.51,85.473,10.5292]
[1772187831668,3.50155405,85.51,85.473,14.51132327]
[1772187832068,3.50155405,85.51,85.473,3.98212327]
[1772187833374,10.5238,85.518,85.474,4.01083241]
[1772187833775,3.50155405,85.51,85.474,4.01083241]
[1772187835084,3.50155405,85.53,85.481,4.00798546]
[1772187835469,453.22063544,85.534,85.483,4.00798546]
[1772187836270,10.522,85.532,85.483,4.00798546]
[1772187836972,10.522,85.532,85.485,4.07998617]
[1772187837172,453.22063544,85.534,85.485,4.07998617]
[1772187837673,453.22063544,85.534,85.491,4.07998617]
[1772187837881,7.14661996,85.54,85.501,4.07998617]
[1772187838377,10.5213,85.539,85.501,4.07998617]
[1772187838872,7.14661996,85.54,85.501,4.07998617]
[1772187839073,10.5201,85.548,85.501,4.07998617]
[1772187839277,3.50155405,85.54,85.501,4.07998617]
[1772187840175,3.64506591,85.558,85.501,4.07998617]
[1772187840373,3.64506591,85.558,85.511,4.08098221]
[1772187841274,3.50155405,85.54,85.501,10.5258]
[1772187841475,3.50155405,85.54,85.502,4.04898826]
[1772187846885,3.50155405,85.54,85.503,10.5255]
[1772187847476,3.50155405,85.54,85.51,10.5246]
[1772187847781,3.64506591,85.546,85.51,10.5246]
[1772187848188,3.50155405,85.54,85.51,10.5246]
[1772187849279,3.50155405,85.52,85.471,3.96948685]
[1772187849984,3.50155405,85.52,85.49,10.5271]
[1772187852582,3.50155405,85.52,85.496,10.5264]
[1772187852782,3.64506591,85.529,85.496,10.5264]
[1772187853992,3.50155405,85.53,85.502,10.5256]
[1772187854288,3.50155405,85.54,85.502,10.5256]
[1772187855389,3.50155405,85.53,85.502,10.5256]
[1772187856087,3.50155405,85.53,85.496,7.31529222]
[1772187856289,3.50155405,85.52,85.471,7.31529222]
[1772187856587,3.50155405,85.5,85.458,7.31529222]
[1772187857186,3.50155405,85.48,85.431,7.31529222]
[1772187858893,3.50155405,85.47,85.431,7.31529222]
[1772187859895,3.50155405,85.47,85.436,10.5337]
[1772187861191,3.50155405,85.47,85.431,7.31529222]
[1772187862288,10.5314,85.456,85.417,7.31529222]
[1772187862484,3.50155405,85.45,85.417,7.31529222]
[1772187862687,3.50155405,85.46,85.417,7.31529222]
[1772187863394,3.50155405,85.46,85.4,3.50155405]
[1772187863395,3.50155405,85.46,85.421,7.31529222]
[1772187863786,3.50155405,85.44,85.409,7.31529222]
[1772187864385,7.56604338,85.452,85.4,7.31529222]
[1772187864386,3.50155405,85.43,85.4,7.31529222]
[1772187864586,7.56604338,85.452,85.4,7.31529222]
[1772187864795,3.50155405,85.45,85.401,7.31529222]